fUSD/lending_fUSD_20250904
["ID","MTS","AMOUNT","RATE_DAILY","PERIOD"]
[383588846,1757011858109,-93086.78506585,0.00025,2]
[383588847,1757011858477,-400.0,0.0002354,2]
[383588848,1757011858488,-400.0,0.0002354,2]
[383588849,1757011858549,-423.41825845,0.0002354,2]
[383588850,1757011858561,-82.50174155,0.0002354,2]
[383588851,1757011858570,-400.0,0.0002354,2]
[383588852,1757011858580,-400.0,0.0002354,2]
[383588853,1757011858590,-8.76659605,0.0002354,2]
[383588854,1757011858617,-391.23340395,0.0002354,2]
[383588855,1757011858628,-400.0,0.0002354,2]
[383588856,1757011858638,-372.06858605,0.00023814,2]
[383588857,1757011858658,-27.93141395,0.00023814,2]
[383588858,1757011858669,-400.0,0.00023814,2]
[383588859,1757011858679,-400.0,0.00023814,2]
[383588860,1757011858689,-469.53713601,0.00024033,2]
[383588861,1757011858803,-400.0,0.0002354,2]
[383588862,1757011858813,-400.0,0.0002354,2]
[383588863,1757011858822,-400.0,0.0002354,2]
[383588864,1757011858831,-400.0,0.00023814,2]
[383588865,1757011858841,-3930.0,0.00024033,2]
[383588866,1757011858857,-4574.29742427,0.00024033,2]
[383588867,1757011858866,-400.0,0.00024088,2]
[383588868,1757011858875,-400.0,0.00024088,2]
[383588869,1757011858884,-400.0,0.00024088,2]
[383588870,1757011858893,-237.80177728,0.00024121,2]
[383588871,1757011858903,-400.0,0.00024362,2]
[383588872,1757011858912,-8973.83456028,0.00024627,2]
[383588873,1757011858921,-400.0,0.00024636,2]
[383588874,1757011858931,-400.0,0.0002491,2]
[383588875,1757011858941,-106913.21493415,0.00025,2]
[383588876,1757011858952,-300.0,0.00025,2]
[383588877,1757011858963,-160.0,0.00025,30]
[383588878,1757011858972,-2218.17,0.00025,7]
[383588879,1757011858982,-22034.47,0.00025,7]
[383588880,1757011858993,-4124.25,0.00025,7]
[383588881,1757011859003,-7647.0,0.00025,14]
[383588882,1757011859013,-250.0,0.00025,7]
[383588883,1757011859023,-3010.21128815,0.00025,7]
[383588884,1757011859032,-235.37690911,0.00025,2]
[383588885,1757011859041,-3010.21128815,0.00025,30]
[383588886,1757011859050,-160.0,0.00025,7]
[383588887,1757011859060,-160.0,0.00025,30]
[383588888,1757011859070,-160.0,0.00025,7]
[383588889,1757011859080,-212.59699798,0.00025,7]
[383588890,1757011859089,-212.59699798,0.00025,30]
[383588891,1757011859100,-514.64478986,0.00025,7]
[383588892,1757011859110,-514.64478986,0.00025,30]
[383588893,1757011859119,-334.5472959,0.00025002,2]
[383588894,1757011859129,-248.71531821,0.00025002,2]
[383588895,1757011859140,-160.0,0.00025002,2]
[383588896,1757011859159,-500.0,0.00025003,2]
[383588897,1757011859171,-787.26,0.00025003,2]
[383588898,1757011859181,-257.38487696,0.00025006,2]
[383588899,1757011859194,-500.0,0.0002503,2]
[383588900,1757011859203,-150.0,0.00025043,2]
[383588901,1757011859214,-150.0,0.00025043,2]
[383588902,1757011859224,-500.34562726,0.00025043,2]
[383588903,1757011859235,-150.0,0.00025043,2]
[383588904,1757011859245,-500.0,0.00025043,2]
[383588905,1757011859256,-787.26,0.0002507,2]
[383588906,1757011859266,-226.58,0.00025096,2]
[383588907,1757011859276,-500.0,0.00025099,2]
[383588908,1757011859285,-160.0,0.000251,7]
[383588909,1757011859295,-51947.13080324,0.000251,2]
[383588910,1757011859311,-45617.7978852,0.000251,2]
[383588911,1757011859321,-58116.44,0.000251,7]
[383588912,1757011859331,-212.59699798,0.000251,7]
[383588913,1757011859341,-514.64478986,0.000251,7]
[383588914,1757011859352,-400.0,0.00025163,2]
[383588915,1757011859362,-400.0,0.00025183,2]
[383588916,1757011859373,-500.0,0.00025183,2]
[383588917,1757011859382,-401.63,0.00025183,2]
[383588918,1757011859392,-500.0,0.00025184,2]
[383588919,1757011859403,-400.07,0.00025184,2]
[383588920,1757011859414,-400.0,0.00025184,2]
[383588921,1757011859424,-400.0,0.00025184,2]
[383588922,1757011859433,-400.0,0.00025184,2]
[383588923,1757011859443,-400.0,0.00025184,2]
[383588924,1757011859452,-518.19,0.00025184,2]
[383588925,1757011859461,-451.42,0.00025184,2]
[383588926,1757011859471,-400.0,0.00025184,2]
[383588927,1757011859481,-515.03,0.00025184,2]
[383588928,1757011859491,-400.0,0.00025184,2]
[383588929,1757011859500,-400.0,0.00025184,2]
[383588930,1757011859510,-400.0,0.00025184,2]
[383588931,1757011859519,-400.0,0.00025184,2]
[383588932,1757011859529,-400.0,0.00025184,2]
[383588933,1757011859539,-400.0,0.00025184,2]
[383588934,1757011859549,-604.82,0.00025184,2]
[383588935,1757011859559,-400.0,0.00025184,2]
[383588936,1757011859569,-400.0,0.00025184,2]
[383588937,1757011859578,-400.0,0.00025184,2]
[383588938,1757011859588,-400.0,0.00025184,2]
[383588939,1757011859598,-400.0,0.00025184,2]
[383588940,1757011859607,-400.0,0.00025184,2]
[383588941,1757011859616,-539.53,0.00025184,2]
[383588942,1757011859625,-163.03,0.00025184,2]
[383588943,1757011859634,-312.0,0.00025184,2]
[383588944,1757011859642,-400.0,0.00025184,2]
[383588945,1757011859651,-400.0,0.00025184,2]
[383588946,1757011859661,-717.27,0.00025184,2]
[383588947,1757011859670,-400.0,0.00025184,2]
[383588948,1757011859680,-400.0,0.00025184,2]
[383588949,1757011859690,-400.0,0.00025184,2]
[383588950,1757011859703,-400.0,0.00025184,2]
[383588951,1757011859713,-400.0,0.00025184,2]
[383588952,1757011859722,-400.0,0.00025184,2]
[383588953,1757011859731,-477.94,0.00025184,2]
[383588954,1757011859740,-422.18,0.00025184,2]
[383588955,1757011859750,-400.0,0.00025184,2]
[383588956,1757011859760,-400.0,0.00025184,2]
[383588957,1757011859772,-458.88,0.00025184,2]
[383588958,1757011859782,-335.19890001,0.00025206,2]
[383588959,1757011859791,-200.0,0.00025239,2]
[383588960,1757011859800,-400.0,0.00025252,2]
[383588961,1757011859811,-400.0,0.00025252,2]
[383588962,1757011859820,-400.0,0.00025252,2]
[383588963,1757011859829,-400.0,0.00025252,2]
[383588964,1757011859839,-400.0,0.00025252,2]
[383588965,1757011859848,-400.0,0.00025252,2]
[383588966,1757011859858,-400.0,0.00025252,2]
[383588967,1757011859867,-400.0,0.00025252,2]
[383588968,1757011859877,-400.0,0.00025252,2]
[383588969,1757011859887,-400.0,0.00025252,2]
[383588970,1757011859896,-400.0,0.00025252,2]
[383588971,1757011859906,-400.0,0.00025252,2]
[383588972,1757011859917,-453.32,0.00025252,2]
[383588973,1757011859929,-400.0,0.00025252,2]
[383588974,1757011859939,-400.0,0.00025252,2]
[383588975,1757011859949,-400.0,0.00025252,2]
[383588976,1757011859959,-437.57,0.00025252,2]
[383588977,1757011859969,-400.0,0.00025252,2]
[383588978,1757011859979,-400.0,0.00025252,2]
[383588979,1757011859988,-400.0,0.00025252,2]
[383588980,1757011859998,-200.0,0.00025252,2]
[383588981,1757011860008,-290.22,0.00025252,2]
[383588982,1757011860018,-166.01,0.00025252,2]
[383588983,1757011860028,-400.0,0.00025252,2]
[383588984,1757011860038,-186.14,0.00025252,2]
[383588985,1757011860048,-376.67,0.00025252,2]
[383588986,1757011860057,-400.0,0.00025252,2]
[383588987,1757011860067,-164.1887435,0.00025252,2]
[383588988,1757011860076,-400.0,0.00025252,2]
[383588989,1757011860086,-400.0,0.00025252,2]
[383588990,1757011860096,-525.32,0.00025252,2]
[383588991,1757011860105,-191.93,0.00025252,2]
[383588992,1757011860114,-532.16,0.00025252,2]
[383588993,1757011860124,-400.0,0.00025252,2]
[383588994,1757011860133,-190.92,0.00025252,2]
[383588995,1757011860142,-285.73,0.00025252,2]
[383588996,1757011860151,-170.28,0.00025252,2]
[383588997,1757011860161,-192.15,0.00025252,2]
[383588998,1757011860171,-400.0,0.00025252,2]
[383588999,1757011860181,-216.66,0.00025252,2]
[383589000,1757011860190,-400.0,0.00025252,2]
[383589001,1757011860199,-336.92,0.00025252,2]
[383589002,1757011860210,-400.0,0.00025252,2]
[383589003,1757011860220,-276.4,0.00025252,2]
[383589004,1757011860229,-400.0,0.00025252,2]
[383589005,1757011860238,-400.0,0.00025252,2]
[383589006,1757011860248,-400.0,0.00025252,2]
[383589007,1757011860258,-400.0,0.00025252,2]
[383589008,1757011860267,-400.0,0.00025252,2]
[383589009,1757011860277,-400.0,0.00025252,2]
[383589010,1757011860286,-400.0,0.00025252,2]
[383589011,1757011860296,-400.0,0.00025252,2]
[383589012,1757011860306,-400.0,0.00025252,2]
[383589013,1757011860318,-400.0,0.00025252,2]
[383589014,1757011860328,-400.0,0.00025252,2]
[383589015,1757011860338,-400.0,0.00025252,2]
[383589016,1757011860348,-400.0,0.00025252,2]
[383589017,1757011860357,-400.0,0.00025252,2]
[383589018,1757011860367,-400.0,0.00025252,2]
[383589019,1757011860377,-396.13,0.00025252,2]
[383589020,1757011860387,-406.56,0.00025252,2]
[383589021,1757011860397,-400.0,0.00025252,2]
[383589022,1757011860407,-400.0,0.00025252,2]
[383589023,1757011860417,-504.36,0.00025252,2]
[383589024,1757011860428,-400.0,0.00025252,2]
[383589025,1757011860437,-400.0,0.00025252,2]
[383589026,1757011860448,-170.31,0.00025252,2]
[383589027,1757011860459,-400.0,0.00025252,2]
[383589028,1757011860468,-400.0,0.00025252,2]
[383589029,1757011860479,-400.0,0.00025252,2]
[383589030,1757011860489,-410.54,0.00025252,2]
[383589031,1757011860500,-400.0,0.00025252,2]
[383589032,1757011860510,-400.0,0.00025252,2]
[383589033,1757011860520,-400.0,0.00025252,2]
[383589034,1757011860531,-400.0,0.00025252,2]
[383589035,1757011860542,-400.0,0.00025252,2]
[383589036,1757011860553,-400.0,0.00025252,2]
[383589037,1757011860563,-400.0,0.00025252,2]
[383589038,1757011860574,-400.0,0.00025252,2]
[383589039,1757011860584,-400.0,0.00025252,2]
[383589040,1757011860594,-400.0,0.00025252,2]
[383589041,1757011860604,-400.0,0.00025252,2]
[383589042,1757011860614,-400.0,0.00025252,2]
[383589043,1757011860624,-400.0,0.00025252,2]
[383589044,1757011860634,-400.0,0.00025252,2]
[383589045,1757011860644,-400.0,0.00025252,2]
[383589046,1757011860654,-400.0,0.00025252,2]
[383589047,1757011860664,-490.70355908,0.00025252,2]
[383589048,1757011860674,-400.0,0.00025252,2]
[383589049,1757011860684,-507.0,0.00025252,2]
[383589050,1757011860694,-400.0,0.00025252,2]
[383589051,1757011860707,-400.0,0.00025252,2]
[383589052,1757011860718,-400.0,0.00025252,2]
[383589053,1757011860729,-400.0,0.00025252,2]
[383589054,1757011860739,-205.6536,0.00025252,2]
[383589055,1757011860750,-201.42,0.00025252,2]
[383589056,1757011860761,-400.0,0.00025252,2]
[383589057,1757011860772,-400.0,0.00025252,2]
[383589058,1757011860783,-300.98,0.00025252,2]
[383589059,1757011860795,-400.0,0.00025252,2]
[383589060,1757011860805,-400.0,0.00025252,2]
[383589061,1757011860815,-400.0,0.00025252,2]
[383589062,1757011860825,-400.0,0.00025252,2]
[383589063,1757011860835,-400.0,0.00025252,2]
[383589064,1757011861052,-400.0,0.00025252,2]
[383589065,1757011861062,-398.77232322,0.00025252,2]
[383589066,1757011861072,-400.0,0.00025252,2]
[383589067,1757011861082,-400.0,0.00025252,2]
[383589068,1757011861091,-337.45,0.00025252,2]
[383589069,1757011861101,-400.0,0.00025252,2]
[383589070,1757011861111,-545.19,0.00025252,2]
[383589071,1757011861120,-242.77,0.00025252,2]
[383589072,1757011861130,-400.0,0.00025252,2]
[383589073,1757011861141,-300.0,0.00025252,2]
[383589074,1757011861151,-400.0,0.00025252,2]
[383589075,1757011861162,-400.0,0.00025252,2]
[383589076,1757011861172,-400.0,0.00025252,2]
[383589077,1757011861182,-400.0,0.00025252,2]
[383589078,1757011861192,-213.02,0.00025252,2]
[383589079,1757011861202,-400.0,0.00025252,2]
[383589080,1757011861212,-400.0,0.00025252,2]
[383589081,1757011861222,-400.0,0.00025252,2]
[383589082,1757011861233,-273.05,0.00025252,2]
[383589083,1757011861243,-177.75,0.00025252,2]
[383589084,1757011861253,-400.0,0.00025252,2]
[383589085,1757011861263,-400.0,0.00025252,2]
[383589086,1757011861273,-196.04127165,0.00025252,2]
[383589087,1757011861283,-278.38,0.00025252,2]
[383589088,1757011861295,-400.0,0.00025252,2]
[383589089,1757011861305,-400.0,0.00025252,2]
[383589090,1757011861315,-547.6,0.00025252,2]
[383589091,1757011861325,-400.0,0.00025252,2]
[383589092,1757011861335,-260.2,0.00025252,2]
[383589093,1757011861349,-400.0,0.00025252,2]
[383589094,1757011861361,-150.29,0.00025252,2]
[383589095,1757011861372,-400.0,0.00025252,2]
[383589096,1757011861382,-379.13,0.00025252,2]
[383589097,1757011861392,-400.0,0.00025252,2]
[383589098,1757011861402,-400.0,0.00025252,2]
[383589099,1757011861412,-508.8,0.00025252,2]
[383589100,1757011861422,-428.01,0.00025252,2]
[383589101,1757011861432,-400.0,0.00025252,2]
[383589102,1757011861442,-400.0,0.00025252,2]
[383589103,1757011861452,-491.61,0.00025252,2]
[383589104,1757011861462,-400.0,0.00025252,2]
[383589105,1757011861472,-400.0,0.00025252,2]
[383589106,1757011861482,-400.0,0.00025252,2]
[383589107,1757011861494,-400.0,0.00025252,2]
[383589108,1757011861504,-400.0,0.00025252,2]
[383589109,1757011861515,-400.0,0.00025252,2]
[383589110,1757011861524,-400.0,0.00025252,2]
[383589111,1757011861535,-400.0,0.00025252,2]
[383589112,1757011861546,-400.0,0.00025252,2]
[383589113,1757011861556,-400.0,0.00025252,2]
[383589114,1757011861567,-485.08443595,0.00025252,2]
[383589115,1757011861577,-470.26,0.00025252,2]
[383589116,1757011861588,-400.0,0.00025252,2]
[383589117,1757011861599,-400.0,0.00025252,2]
[383589118,1757011861609,-400.0,0.00025252,2]
[383589119,1757011861619,-400.0,0.00025252,2]
[383589120,1757011861630,-400.0,0.00025252,2]
[383589121,1757011861640,-400.0,0.00025252,2]
[383589122,1757011861650,-400.0,0.00025252,2]
[383589123,1757011861661,-400.0,0.00025252,2]
[383589124,1757011861672,-400.0,0.00025252,2]
[383589125,1757011861682,-400.0,0.00025252,2]
[383589126,1757011861692,-400.0,0.00025252,2]
[383589127,1757011861704,-400.0,0.00025252,2]
[383589128,1757011861714,-400.0,0.00025252,2]
[383589129,1757011861724,-400.0,0.00025252,2]
[383589130,1757011861735,-400.0,0.00025252,2]
[383589131,1757011861745,-400.0,0.00025252,2]
[383589132,1757011861755,-400.0,0.00025252,2]
[383589133,1757011861764,-400.0,0.00025252,2]
[383589134,1757011861775,-400.0,0.00025252,2]
[383589135,1757011861785,-400.0,0.00025252,2]
[383589136,1757011861795,-400.0,0.00025252,2]
[383589137,1757011861806,-400.0,0.00025252,2]
[383589138,1757011861817,-400.0,0.00025252,2]
[383589139,1757011861827,-400.0,0.00025252,2]
[383589140,1757011861837,-400.0,0.00025252,2]
[383589141,1757011861848,-400.0,0.00025252,2]
[383589142,1757011861858,-400.0,0.00025252,2]
[383589143,1757011861868,-400.0,0.00025252,2]
[383589144,1757011861877,-400.0,0.00025252,2]
[383589145,1757011861887,-400.0,0.00025252,2]
[383589146,1757011861897,-400.0,0.00025252,2]
[383589147,1757011861909,-400.0,0.00025252,2]
[383589148,1757011861919,-400.0,0.00025252,2]
[383589149,1757011861930,-400.0,0.00025252,2]
[383589150,1757011861941,-528.32,0.00025252,2]
[383589151,1757011861952,-486.49211052,0.00025252,2]
[383589152,1757011861964,-400.0,0.00025252,2]
[383589153,1757011861974,-400.0,0.00025252,2]
[383589154,1757011861984,-400.0,0.00025252,2]
[383589155,1757011861994,-172.14751088,0.00025263,10]
[383589156,1757011862004,-150.0,0.00025273,2]
[383589157,1757011862014,-150.0,0.00025317,2]
[383589158,1757011862025,-150.0,0.00025317,2]
[383589159,1757011862035,-150.0,0.00025317,2]
[383589160,1757011862045,-500.0,0.00025317,2]
[383589161,1757011862055,-1087.0,0.00025342,2]
[383589162,1757011862065,-226.58,0.00025369,2]
[383589163,1757011862074,-400.0,0.00025437,2]
[383589164,1757011862085,-400.0,0.00025457,2]
[383589165,1757011862095,-401.63,0.00025457,2]
[383589166,1757011862106,-216.10176022,0.00025458,2]
[383589167,1757011862117,-400.0,0.00025458,2]
[383589168,1757011862127,-400.0,0.00025458,2]
[383589169,1757011862137,-400.0,0.00025458,2]
[383589170,1757011862148,-400.0,0.00025458,2]
[383589171,1757011862159,-326.59,0.00025458,2]
[383589172,1757011862171,-515.03,0.00025458,2]
[383589173,1757011862183,-400.0,0.00025458,2]
[383589174,1757011862196,-400.0,0.00025458,2]
[383589175,1757011862207,-400.0,0.00025458,2]
[383589176,1757011862216,-395.43,0.00025458,2]
[383589177,1757011862228,-400.0,0.00025458,2]
[383589178,1757011862238,-400.0,0.00025458,2]
[383589179,1757011862249,-604.82,0.00025458,2]
[383589180,1757011862260,-400.0,0.00025458,2]
[383589181,1757011862270,-400.0,0.00025458,2]
[383589182,1757011862280,-400.0,0.00025458,2]
[383589183,1757011862290,-400.0,0.00025458,2]
[383589184,1757011862301,-400.0,0.00025458,2]
[383589185,1757011862313,-539.53,0.00025458,2]
[383589186,1757011862323,-457.04,0.00025458,2]
[383589187,1757011862334,-717.27,0.00025458,2]
[383589188,1757011862345,-400.0,0.00025458,2]
[383589189,1757011862357,-289.5,0.00025458,2]
[383589190,1757011862368,-400.0,0.00025458,2]
[383589191,1757011862379,-400.0,0.00025458,2]
[383589192,1757011862389,-400.0,0.00025458,2]
[383589193,1757011862401,-428.26519404,0.00025458,2]
[383589194,1757011862413,-260.14,0.00025458,2]
[383589195,1757011862423,-168.0,0.00025479,2]
[383589196,1757011862434,-200.0,0.00025491,2]
[383589197,1757011862444,-1000.0,0.00025505,2]
[383589198,1757011862455,-165.32,0.00025516,2]
[383589199,1757011862466,-787.26,0.00025525,2]
[383589200,1757011862476,-400.0,0.00025526,2]
[383589201,1757011862487,-400.0,0.00025526,2]
[383589202,1757011862498,-400.0,0.00025526,2]
[383589203,1757011862509,-400.0,0.00025526,2]
[383589204,1757011862519,-400.0,0.00025526,2]
[383589205,1757011862530,-400.0,0.00025526,2]
[383589206,1757011862541,-294.59,0.00025526,2]
[383589207,1757011862551,-204.02,0.00025526,2]
[383589208,1757011862561,-400.0,0.00025526,2]
[383589209,1757011862571,-400.0,0.00025526,2]
[383589210,1757011862581,-235.56,0.00025526,2]
[383589211,1757011862591,-400.0,0.00025526,2]
[383589212,1757011862602,-345.89,0.00025526,2]
[383589213,1757011862612,-196.21,0.00025526,2]
[383589214,1757011862622,-400.0,0.00025526,2]
[383589215,1757011862633,-518.36,0.00025526,2]
[383589216,1757011862643,-400.0,0.00025526,2]
[383589217,1757011862653,-417.98,0.00025526,2]
[383589218,1757011862663,-400.0,0.00025526,2]
[383589219,1757011862674,-298.7864736,0.00025526,2]
[383589220,1757011862684,-279.09,0.00025526,2]
[383589221,1757011862694,-341.93,0.00025526,2]
[383589222,1757011862708,-455.62,0.00025526,2]
[383589223,1757011862718,-400.0,0.00025526,2]
[383589224,1757011862728,-400.0,0.00025526,2]
[383589225,1757011862739,-380.52,0.00025526,2]
[383589226,1757011862750,-400.0,0.00025526,2]
[383589227,1757011862760,-400.0,0.00025526,2]
[383589228,1757011862771,-292.7,0.00025526,2]
[383589229,1757011862782,-400.0,0.00025526,2]
[383589230,1757011862792,-400.0,0.00025526,2]
[383589231,1757011862802,-400.0,0.00025526,2]
[383589232,1757011862812,-509.42,0.00025526,2]
[383589233,1757011862823,-400.0,0.00025526,2]
[383589234,1757011862834,-400.0,0.00025526,2]
[383589235,1757011862844,-400.0,0.00025526,2]
[383589236,1757011862856,-328.78,0.00025526,2]
[383589237,1757011862867,-400.0,0.00025526,2]
[383589238,1757011862879,-400.0,0.00025526,2]
[383589239,1757011862889,-342.0,0.00025526,2]
[383589240,1757011862901,-174.81,0.00025526,2]
[383589241,1757011862912,-319.51,0.00025526,2]
[383589242,1757011862924,-400.0,0.00025526,2]
[383589243,1757011862936,-400.0,0.00025526,2]
[383589244,1757011863131,-255.26,0.00025526,2]
[383589245,1757011863141,-400.0,0.00025526,2]
[383589246,1757011863152,-197.31624636,0.00025526,2]
[383589247,1757011863162,-493.8,0.00025526,2]
[383589248,1757011863172,-400.0,0.00025526,2]
[383589249,1757011863182,-196.72,0.00025526,2]
[383589250,1757011863192,-241.87,0.00025526,2]
[383589251,1757011863202,-400.0,0.00025526,2]
[383589252,1757011863212,-400.0,0.00025526,2]
[383589253,1757011863222,-334.31,0.00025526,2]
[383589254,1757011863231,-400.0,0.00025526,2]
[383589255,1757011863241,-400.0,0.00025526,2]
[383589256,1757011863251,-400.0,0.00025526,2]
[383589257,1757011863261,-400.0,0.00025526,2]
[383589258,1757011863271,-400.0,0.00025526,2]
[383589259,1757011863280,-203.66,0.00025526,2]
[383589260,1757011863291,-416.39,0.00025526,2]
[383589261,1757011863301,-400.0,0.00025526,2]
[383589262,1757011863311,-400.0,0.00025526,2]
[383589263,1757011863321,-400.0,0.00025526,2]
[383589264,1757011863332,-400.0,0.00025526,2]
[383589265,1757011863343,-425.47,0.00025526,2]
[383589266,1757011863352,-400.0,0.00025526,2]
[383589267,1757011863362,-451.84,0.00025526,2]
[383589268,1757011863372,-361.84,0.00025526,2]
[383589269,1757011863382,-448.66,0.00025526,2]
[383589270,1757011863393,-400.0,0.00025526,2]
[383589271,1757011863403,-411.66,0.00025526,2]
[383589272,1757011863413,-400.0,0.00025526,2]
[383589273,1757011863422,-400.0,0.00025526,2]
[383589274,1757011863431,-400.0,0.00025526,2]
[383589275,1757011863440,-400.0,0.00025526,2]
[383589276,1757011863449,-400.0,0.00025526,2]
[383589277,1757011863458,-400.0,0.00025526,2]
[383589278,1757011863467,-400.0,0.00025526,2]
[383589279,1757011863476,-184.4,0.00025536,2]
[383589280,1757011863486,-502.0,0.0002557,2]
[383589281,1757011863495,-150.0,0.00025591,2]
[383589282,1757011863505,-153.24616311,0.00025591,2]
[383589283,1757011863514,-500.0,0.00025591,2]
[383589284,1757011863524,-214.0,0.0002562,2]
[383589285,1757011863533,-203.0,0.0002562,2]
[383589286,1757011863543,-400.0,0.00025711,2]
[383589287,1757011863553,-400.0,0.00025731,2]
[383589288,1757011863563,-401.63,0.00025731,2]
[383589289,1757011863574,-356.81,0.00025732,2]
[383589290,1757011863584,-400.0,0.00025732,2]
[383589291,1757011863593,-190.19812712,0.00025732,2]
[383589292,1757011863605,-240.60113987,0.00025732,2]
[383589293,1757011863615,-515.03,0.00025732,2]
[383589294,1757011863625,-400.0,0.00025732,2]
[383589295,1757011863635,-412.11,0.00025732,2]
[383589296,1757011863646,-515.17,0.00025732,2]
[383589297,1757011863656,-400.0,0.00025732,2]
[383589298,1757011863666,-400.0,0.00025732,2]
[383589299,1757011863676,-604.82,0.00025732,2]
[383589300,1757011863687,-400.0,0.00025732,2]
[383589301,1757011863699,-372.77,0.00025732,2]
[383589302,1757011863710,-400.0,0.00025732,2]
[383589303,1757011863720,-278.99,0.00025732,2]
[383589304,1757011863731,-400.0,0.00025732,2]
[383589305,1757011863741,-539.53,0.00025732,2]
[383589306,1757011863750,-717.27,0.00025732,2]
[383589307,1757011863760,-400.0,0.00025732,2]
[383589308,1757011863769,-400.0,0.00025732,2]
[383589309,1757011863778,-400.0,0.00025732,2]
[383589310,1757011863788,-416.65,0.00025732,2]
[383589311,1757011863798,-951.45279,0.0002574,2]
[383589312,1757011863808,-217.92,0.000258,2]
[383589313,1757011863818,-400.0,0.000258,2]
[383589314,1757011863828,-408.23,0.000258,2]
[383589315,1757011863838,-336.2,0.000258,2]
[383589316,1757011863847,-400.0,0.000258,2]
[383589317,1757011863855,-374.66,0.000258,2]
[383589318,1757011863864,-400.0,0.000258,2]
[383589319,1757011863874,-400.0,0.000258,2]
[383589320,1757011863884,-400.0,0.000258,2]
[383589321,1757011863893,-180.27,0.000258,2]
[383589322,1757011863903,-400.0,0.000258,2]
[383589323,1757011863913,-400.0,0.000258,2]
[383589324,1757011863922,-192.32,0.000258,2]
[383589325,1757011863932,-400.0,0.000258,2]
[383589326,1757011863941,-400.0,0.000258,2]
[383589327,1757011863952,-229.22,0.000258,2]
[383589328,1757011863961,-400.0,0.000258,2]
[383589329,1757011863971,-301.03,0.000258,2]
[383589330,1757011863982,-299.23,0.000258,2]
[383589331,1757011863994,-400.0,0.000258,2]
[383589332,1757011864005,-400.0,0.000258,2]
[383589333,1757011864015,-400.0,0.000258,2]
[383589334,1757011864026,-306.93,0.000258,2]
[383589335,1757011864035,-400.0,0.000258,2]
[383589336,1757011864048,-400.0,0.000258,2]
[383589337,1757011864059,-312.81,0.000258,2]
[383589338,1757011864070,-400.0,0.000258,2]
[383589339,1757011864080,-400.0,0.000258,2]
[383589340,1757011864089,-176.97,0.000258,2]
[383589341,1757011864100,-354.79,0.000258,2]
[383589342,1757011864110,-351.17,0.000258,2]
[383589343,1757011864120,-200.54,0.000258,2]
[383589344,1757011864130,-400.0,0.000258,2]
[383589345,1757011864140,-221.55,0.000258,2]